Cogmind - Beta 17 @@@ ROGUE MODE // 2026.07.24 @ 00:50:01 Player: Suffixing Result: Destroyed by 7C-QDW(R) with Subdweller Laser Performance ------------- Evolutions (0) 0 Regions Visited (2) 400 Robots Destroyed (9) 45 Value Destroyed (143) 143 Prototype IDs (0) 0 Alien Tech Used (0) 0 Bonus (0) 0 TOTAL SCORE: 588 Bonus ------- None Cogmind --------- Core Integrity 0/250 Matter 276/300 Energy 98/100 System Corruption 0% Temperature Cool (6) Movement Core (1400) Ox27 Location -10/Subcaves Parts ------- > --- POWER (1) -------- (None) > --- PROPULSION (2) --- (None) > --- UTILITY (2) ------ Huge Storage Unit > --- WEAPON (2) ------- Medium Laser Mining Claw > --- INVENTORY (25) --- Light Ion Engine Light Treads Wheel Heat Sink Small Storage Unit Light Armor Plating Light Armor Plating Light Armor Plating Light Armor Plating Hardened Light Armor Plating Hardened Light Armor Plating Subdweller Machine Gun Peak State ------------ > --- POWER ------------ Ion Engine > --- PROPULSION ------- Light Treads Light Treads > --- UTILITY ---------- Small Storage Unit Hardened Light Armor Plating > --- WEAPON ----------- Medium Laser Assault Rifle > --- INVENTORY -------- Light Ion Engine Wheel Hardened Light Armor Plating Hardened Light Armor Plating Hardened Light Armor Plating Light Assault Rifle Mining Claw [Rating: 9] Favorites ----------- Power Ion Engine Engine Ion Engine Propulsion Light Treads Treads Light Treads Leg Aluminum Leg Utility Hardened Light Armor Plating Storage Huge Storage Unit Protection Hardened Light Armor Plating Weapon Medium Laser Energy Gun Medium Laser Ballistic Gun Assault Rifle Slashing Weapon Mining Claw Build | -11 -10 -10 ------- Run | Yrd Mat Sub Slots Evolved . | . . . Power . | . . . Propulsion . | . . . Utility . | . . . Weapon . | . . . Parts Attached 11 | 3 2 6 Power . | . . . Engine . | . . . Core . | . . . Reactor . | . . . Propulsion 3 | 2 . 1 Treads 3 | 2 . 1 Leg . | . . . Wheel . | . . . Hover . | . . . Flight . | . . . Utility 3 | . 2 1 Device . | . . . Storage 1 | . 1 . Processor . | . . . Hackware . | . . . Protection 2 | . 1 1 Artifact . | . . . Weapon 5 | 1 . 4 Energy Gun 2 | . . 2 Energy Cannon . | . . . Ballistic Gun 2 | 1 . 1 Ballistic Cannon . | . . . Launcher . | . . . Special Weapon . | . . . Impact Weapon . | . . . Slashing Weapon 1 | . . 1 Piercing Weapon . | . . . Special Melee Weapon . | . . . Unidentified Prototypes . | . . . Parts Lost 9 | . . 9 Power 1 | . . 1 Propulsion 3 | . . 3 Utility 2 | . . 2 Weapon 3 | . . 3 Highest Loss Streak 9 | . . 9 To Critical Strikes . | . . . Average Backups 9 | 6 9 13 Power 1 | 1 1 1 Propulsion 1 | 4 1 2 Utility 4 | . 4 8 Weapon 1 | 1 1 2 Tool/Special . | . . . Unused Backups 14 | . 2 12 Power 3 | . 1 2 Propulsion 2 | . . 2 Utility 8 | . . 8 Weapon 1 | . 1 . Tool/Special . | . . . Average Slot Usage (%) 97 | . 99 79 Engine 13 | . 14 6 Treads 27 | . 28 22 Storage 14 | . 14 14 Protection 12 | . 13 12 Energy Gun 13 | . 14 10 Ballistic Gun 13 | . 14 12 Peak Build Rating 9 | 6 9 9 Average Rating 8 | 6 8 7 On Entrance 7 | 6 6 9 Avg Prop Armor Cover (%) . | . . . Naked Turns . | . . . Heaviest Build 94 | 14 94 89 Greatest Support 40 | 40 40 40 Greatest Overweight (x) 29 | . 2 29 Average Overweight (x) . | . . 8 Largest Inventory Capacity 25 | 8 25 25 Average Capacity 16 | 8 16 25 Most Carried 16 | 6 16 16 Average Carried 9 | 4 9 13 Final Capacity 25 | 8 25 25 Final Carried 16 | 2 16 12 Class Distribution -------------------- 100% | Mutant Dominant Class ---------------- Mutant | -10/Materials Mutant | -10/Subcaves Resources | -11 -10 -10 ----------- Run | Yrd Mat Sub Matter Collected 343 | 194 118 31 Remotely . | . . . Salvage Created 274 | . 243 31 Parts 17 | . 15 2 Haulers Intercepted 2 | . 2 . Recyclers Shooed 1 | . 1 . Parts Field Recycled . | . . . Retrieved Matter . | . . . Parts Self-Destructed . | . . . Prevented . | . . . Parts Restored . | . . . Kills | -11 -10 -10 ------- Run | Yrd Mat Sub Combat Hostiles Destroyed 6 | . 5 1 Guns 6 | . 5 1 Classes Destroyed 5 | . 4 1 Worker 1 | . 1 . Hauler 2 | . 2 . Swarmer 3 | . 3 . Grunt 2 | . 2 . Subdweller 1 | . . 1 Best Kill Streak 2 | . 2 1 Combat Bots Only 2 | . 2 1 Max Kills in Single Turn 1 | . 1 1 Gunslinging . | . . . Exploded . | . . . Melee . | . . . Uniques/NPCs Destroyed . | . . . Combat | -11 -10 -10 -------- Run | Yrd Mat Sub Hostile Shots Fired 100 | . 25 75 Missed 15 | . 7 8 Hits 85 | . 18 67 Projectile 85 | . 18 67 Critical Strikes 1 | . . 1 Damage Taken 1507 | . 152 1355 Core 257 | . 25 232 Absorbed by Shields . | . . . Core Remaining (%) 100 | 100 . . Volleys Fired 37 | . 26 11 Largest 2 | . 2 2 Hottest 100 | . 70 100 Shots Fired 70 | . 52 18 Gun 70 | . 52 18 Cannon . | . . . Launcher . | . . . Special . | . . . Kinetic 38 | . 26 12 Thermal 32 | . 26 6 Explosive . | . . . Electromagnetic . | . . . Robot Hit Streak 13 | . 13 10 Robot Miss Streak 7 | . 7 1 Penetration Max . | . . . Secondary Targets 1 | . . 1 Max Gunslinging Chain 1 | . . 1 Shots Hit Robots 42 | . 26 16 Core Hits 16 | . 12 4 Critical Kills . | . . . Critical Parts Destroyed . | . . . Critical Strikes 1 | . 1 . Burn 1 | . 1 . Melee Attacks 1 | . . 1 Impact . | . . . Slashing 1 | . . 1 Piercing . | . . . Sneak Attacks . | . . . Combat Hostiles . | . . . Follow-up Attacks . | . . . Damage Inflicted 538 | . 363 175 Guns 535 | . 360 175 Cannons . | . . . Explosions . | . . . Melee . | . . . Ramming 3 | . 3 . Kinetic 273 | . 162 111 Thermal 262 | . 198 64 Explosive . | . . . Electromagnetic . | . . . Impact . | . . . Slashing . | . . . Piercing . | . . . Highest Corruption . | . . . Average Corruption . | . . . Corruption Purged . | . . . Corruption Blocked . | . . . Overload Shots . | . . . Overflow Damage . | . . . Projectiles . | . . . Explosions . | . . . Melee . | . . . Knockbacks . | . . . Impact . | . . . Kinetic . | . . . Secondary . | . . . Self-Inflicted Damage . | . . . Shots . | . . . Rammed 1 | . 1 . Targets Rammed 1 | . 1 . Kicked . | . . . Crushed . | . . . Highest Temperature 156 | . 156 . Average Temperature 65 | . 65 . Received Heat Transfer 138 | . 36 102 Siege Activations . | . . . Martial Activations . | . . . Shielding Activations . | . . . Robots Disrupted . | . . . Combat Hostiles . | . . . Robots Corrupted . | . . . Combat Hostiles . | . . . Parts Fried . | . . . Impact Corruptions . | . . . Robots Melted . | . . . Combat Hostiles . | . . . Parts Melted 1 | . 1 . Heat Transferred 851 | . 666 185 Parts Sabotaged . | . . . Parts Stolen . | . . . Parts Stripped . | . . . Power Chain Reactions . | . . . Alert | -11 -10 -10 ------- Run | Yrd Mat Sub Maximum Alert Level . | . . . Low Security (%) 100 | 100 100 . Level 1 . | . . . Level 2 . | . . . Level 3 . | . . . Level 4 . | . . . Level 5 . | . . . High Security . | . . . Max Security . | . . . Peak Influence 95 | . 95 . Initial . | . . . Average 21 | . 21 . Influence Increases 174 | . 174 . Destroy 0b10 Robot/C 100 | . 100 . Destroy 0b10 Robot/NC 15 | . 15 . Destroy Leader 14 | . 14 . Lose Combat Pursuer 45 | . 45 . Influence Decreases 174 | . 174 . Time Decay 174 | . 174 . Squads Dispatched . | . . . Investigation . | . . . Extermination . | . . . Reinforcement . | . . . Assault . | . . . Garrison . | . . . Intercept . | . . . Searches Triggered . | . . . Construction Impeded . | . . . Haulers Reinforced . | . . . Active Scanning Responses . | . . . Cargo Convoy Interrupts . | . . . Stealth | -11 -10 -10 --------- Run | Yrd Mat Sub Distress Signals . | . . . Communications Jammed . | . . . Distress Signals . | . . . Times Spotted 19 | . 15 4 Peak Tracking Total 4 | . 4 4 Tactical Retreats 1 | . 1 . Traps | -11 -10 -10 ------- Run | Yrd Mat Sub Traps Triggered . | . . . Indirectly . | . . . Trap Hack Attempts . | . . . Triggered . | . . . Disarmed . | . . . Reprogrammed . | . . . Reused . | . . . Traps Extracted . | . . . Installed . | . . . Triggered . | . . . Machines | -11 -10 -10 ---------- Run | Yrd Mat Sub Machines Disabled . | . . . Max in Single Turn . | . . . Machines Repaired . | . . . Machines Dismantled . | . . . Machines Sabotaged . | . . . Overloaded Fab Kills . | . . . Hacking | -11 -10 -10 --------- Run | Yrd Mat Sub Machines Accessed . | . . . Terminals . | . . . Fabricators . | . . . Repair Stations . | . . . Recycling Units . | . . . Scanalyzers . | . . . Garrison Access . | . . . Total Hacks . | . . . Successful . | . . . Failed . | . . . Catastrophic . | . . . Database Lockouts . | . . . Manual . | . . . Terminals . | . . . Fabricators . | . . . Repair Stations . | . . . Recycling Units . | . . . Scanalyzers . | . . . Garrison Access . | . . . Terminal Hacks . | . . . Fabricator Hacks . | . . . Repair Station Hacks . | . . . Recycling Unit Hacks . | . . . Scanalyzer . | . . . Garrison Access Hacks . | . . . Unauthorized Hacks . | . . . Terminals . | . . . Fabricators . | . . . Repair Stations . | . . . Recycling Units . | . . . Scanalyzers . | . . . Garrison Access . | . . . Data Cores Recovered . | . . . Used . | . . . Hacking Detections . | . . . Full Trace Events . | . . . Feedback Events . | . . . Feedback Blocked . | . . . Robot Schematics Acquired . | . . . Robots Built . | . . . Authchips . | . . . Time . | . . . Total Robot Build Rating . | . . . Part Schematics Acquired . | . . . Parts Built . | . . . Authchips . | . . . Time . | . . . Total Part Build Rating . | . . . Part Studies Acquired . | . . . Parts Repaired . | . . . Time . | . . . Parts Recycled . | . . . Recycled Matter . | . . . Retrieved Matter . | . . . Retrieved Components . | . . . Parts Scanalyzed . | . . . Part Schematics Acquired . | . . . Parts Damaged . | . . . Bothacking | -11 -10 -10 ------------ Run | Yrd Mat Sub Used RIF Installer . | . . . Robots Hacked . | . . . Non-combat . | . . . Combat . | . . . Robot Hacks Applied . | . . . Relay Couplers Released . | . . . Fabnet Peak Effective % . | . . . Robots Rewired . | . . . Allies Hacked . | . . . Hacks Repelled . | . . . Allies | -11 -10 -10 -------- Run | Yrd Mat Sub Total Allies . | . . . Largest Group . | . . . Highest-Rated Group . | . . . Highest-Rated Ally . | . . . Total Orders . | . . . Ally Attacks . | . . . Total Damage . | . . . Kills . | . . . Allies Corrupted . | . . . Allies Melted . | . . . Intel | -11 -10 -10 ------- Run | Yrd Mat Sub Active Infowar (turns) . | . . . Robot Analysis Total . | . . . Derelict Logs Recovered . | . . . Drone Launches . | . . . Drone Recoveries . | . . . Exploration | -11 -10 -10 ------------- Run | Yrd Mat Sub Turns Passed 803 | 7 740 56 Spaces Moved 303 | 1 298 4 Core 1 | . . 1 Treads 302 | 1 298 3 Legs . | . . . Wheels . | . . . Hover . | . . . Flight . | . . . Fastest Speed 160 | 160 160 320 Average Speed 220 | 160 215 615 Slowest Speed 1500 | 160 320 1500 Overloaded Moves . | . . . Propulsion Burnouts . | . . . Robots Hopped . | . . . Potential Cave-ins . | . . . Cave-ins Triggered . | . . . Exploration Rate (%) 20 | 2 58 1 Regions Visited 2 Branch Regions 1 Pre-discovered Areas . | . . . Known Exits Taken . | . . . Unknown Exits Taken 2 | 1 1 . Scrap Searched . | . . . Spaces Dug . | . . . Terrain Destroyed . | . . . Melee . | . . . Projectile . | . . . AOE . | . . . Terrain Rammed . | . . . Walls Destroyed . | . . . Machines Disabled . | . . . Actions | -11 -10 -10 --------- Run | Yrd Mat Sub Total 374 | 7 345 22 Wait 3 | . 3 . Move 301 | . 297 4 Hop . | . . . Pick Up 15 | . 15 . Fast Attach . | . . . Attach 6 | . 1 5 Detach . | . . . Swap 5 | 3 1 1 Drop 5 | 4 1 . Fire 37 | . 26 11 Melee 1 | . . 1 Ram . | . . . Kick . | . . . Crush 1 | . 1 . Escape Stasis . | . . . Rewire . | . . . Trap . | . . . Miscellaneous . | . . . Route ------- -11/Scrapyard -10/Materials (discovered 5 exits: [*Mat x2] / [*Min x2] / [*Sub]) -10/Subcaves History --------- Turn | Location | Event 8 | -11/Scrapyard | Discovered new exit (range 0) 8 | -11/Scrapyard | Entered Materials 10 | -10/Materials | Discovered new exit (range 3) 216 | -10/Materials | Discovered new exit (range 4) 267 | -10/Materials | Discovered new exit (range 10) 309 | -10/Materials | Build established: Mutant 568 | -10/Materials | Discovered new exit (range 16) 681 | -10/Materials | Discovered new exit (range 9) 748 | -10/Materials | Entered Subcaves 749 | -10/Subcaves | Ambushed by Subdwellers from Twisted Machinery 749 | -10/Subcaves | Approached by a straggling Scientist 752 | -10/Subcaves | Ambushed by Subdwellers from Twisted Machinery 764 | -10/Subcaves | Core integrity fell below 50% 802 | -10/Subcaves | Core integrity fell below 20% 804 | -10/Subcaves | Destroyed by 7C-QDW(R) with Subdweller Laser Last Messages --------------- 00755_ Critical hit (Destroy). 00761_ Lgt. Assault Rifle destroyed. 00764_ Ion Engine destroyed. 00768_ Assault Rifle destroyed. 00769_ Hrd. Light Armor Plating destroyed. 00772_ 9K-3JW(R) destroyed. 00772_ Switching to secondary target: 7C-QDW(R). 00774_ Lgt. Treads destroyed. 00776_ Acquired 31 matter. 00787_ Subatomizers dissect the Sub. Power Source. 00789_ Lgt. Treads destroyed. 00791_ Med. Laser destroyed. 00793_ 65-GKI(R) Sub. Machine Gun ripped off. 00794_ Lgt. Treads destroyed. 00798_ Subatomizers dissect the Sub. Power Source. EF-ZTY(c): "I think it's somewhere southeast of here" 00799_ Hrd. Light Armor Plating destroyed. Map ----- +----------------------------------------------------+ | | | | | | | ?????????????????????????????????????????????????? | | ?????????????????????????????????????????????????? | | ?????????????????????????????????????????????????? | | ?????????????????????????????????????????????????? | | ?????????????????????????????????????????????????? | | ?????????????????????????????????????????????????? | | ?????????????????????????????????????????????????? | | ?????????????????????????????????????????????????? | | ?????????????????????????????????????????????????? | | ?????????????????????????????????????????????????? | | ?????????????????????????????????????????????????? | | ?????????????????????????????????????????????????? | | ?????????????????????????????????????????????????? | | ?????????????????????????????????????????????????? | | ?????????????????????????#######?????????????????? | | ?????????????????????????# # #""???????????????? | | ????????????????????##?### ""???????????????? | | ????????????????? ""#"##"" """""?????????????????? | | ????????????????? "" " " #""#?????????????????? | | ??????????????????""#"# [ " ##??????????????????? | | ??????????????????????## *R" "#??????????????????? | | ???????????????????????##R "" #"" #??????????????? | | ????????????????????????#@ " #?????????????? | | ???????????????????????# ## ??????????? | | ?????????????????????? #?? ???????????????? | | ????????????????????? ########???#??????????????? | | ???????????????????? %#??????????????????????????? | | ???????????????????###???????????????????????????? | | ?????????????????????????????????????????????????? | | ?????????????????????????????????????????????????? | | ?????????????????????????????????????????????????? | | ?????????????????????????????????????????????????? | | ?????????????????????????????????????????????????? | | ?????????????????????????????????????????????????? | | ?????????????????????????????????????????????????? | | ?????????????????????????????????????????????????? | | ?????????????????????????????????????????????????? | | ?????????????????????????????????????????????????? | | ?????????????????????????????????????????????????? | | ?????????????????????????????????????????????????? | | ?????????????????????????????????????????????????? | | ?????????????????????????????????????????????????? | | ?????????????????????????????????????????????????? | | ?????????????????????????????????????????????????? | | ?????????????????????????????????????????????????? | | ?????????????????????????????????????????????????? | | ?????????????????????????????????????????????????? | +----------------------------------------------------+ Best States ------------- Heat Dissipation 25 Energy Generation 10 Energy Capacity 250 Matter Stores 300 Matter Capacity 300 Sight Range 16 Terrain Scan Density 10 Armor Coverage 150 Evasion (%) 40 Recoil Reduction 2 Item Schematics ----------------- None Robot Schematics ------------------ None Fabricated ------------ Nothing Repaired ---------- Nothing Studied --------- None Alien Tech Used ----------------- None Achievements -------------- None Challenges ------------ None Game ------ Seed SwordDrainedTriangulator Manual? 0 Play Time 00:04:11 Cumulative 63.7 hours Start 2026.07.24 @ 00:42:11 End 2026.07.24 @ 00:50:01 Sessions 1 Manual Loads 0 Difficulty Rogue Special Mode None Game No. 271 Rogue 226 Adventurer 45 Explorer 0 Win Type - Total 2 Types 2/0/0/0/0/0/0/0/0/0 Lore% 66 Gallery% 46 Achievement% 43 Wizard Run 0 Options --------- Layout 1 ASCII 0 Keyboard 0 Movement Numpad Keybinds 0 Fullscreen 1 Font 24/Smallcaps Map View 50x35 Zoom Use 0% Tactical HUD 1 Map Filters NONE Filters NONE Steam 1 RUN: 5ea5dbd8-eb33-4fd3-a072-063ca4967bbc